[Event "*** Titled Tuesday Blitz"]
[Site "Chess.com"]
[Date "2020.05.26"]
[Round "7"]
[White "BEEkhishig"]
[Black "Msb2"]
[Result "1-0"]
[WhiteElo "2630"]
[BlackElo "2850"]
[TimeControl "180+1"]
[EndTime "11:21:37 PDT"]
[Termination "BEEkhishig won by checkmate"]

1. c4 {[%clk 0:03:00.9]} 1... e6 {[%clk 0:02:53.1]} 2. g3 {[%clk 0:03:00.6]}
2... d5 {[%clk 0:02:52.8]} 3. Bg2 {[%clk 0:03:01.5]} 3... Nf6 {[%clk 0:02:51.6]}
4. Nf3 {[%clk 0:03:02.4]} 4... dxc4 {[%clk 0:02:50.9]} 5. O-O {[%clk 0:03:03.3]}
5... a6 {[%clk 0:02:50.7]} 6. a4 {[%clk 0:03:01.6]} 6... Nc6 {[%clk 0:02:50.5]}
7. Na3 {[%clk 0:03:00.9]} 7... Na5 {[%clk 0:02:47.8]} 8. Qc2 {[%clk 0:02:59.3]}
8... Qd5 {[%clk 0:02:47]} 9. Rd1 {[%clk 0:02:42.4]} 9... Bd7 {[%clk 0:02:44.2]}
10. d3 {[%clk 0:02:37.8]} 10... cxd3 {[%clk 0:02:40]} 11. Rxd3 {[%clk
0:02:34.8]} 11... Qc5 {[%clk 0:02:23.9]} 12. Qd1 {[%clk 0:02:31.9]} 12... Bd6
{[%clk 0:02:12.4]} 13. Be3 {[%clk 0:02:22.1]} 13... Qh5 {[%clk 0:01:57.9]} 14.
h3 {[%clk 0:02:19.1]} 14... O-O {[%clk 0:01:55.1]} 15. b4 {[%clk 0:02:11.6]}
15... Nc6 {[%clk 0:01:45.7]} 16. g4 {[%clk 0:02:09.8]} 16... Nxg4 {[%clk
0:01:36.1]} 17. hxg4 {[%clk 0:02:07.3]} 17... Qxg4 {[%clk 0:01:37]} 18. b5
{[%clk 0:02:01.9]} 18... axb5 {[%clk 0:01:29.6]} 19. Nxb5 {[%clk 0:02:02.8]}
19... Ne5 {[%clk 0:00:48.5]} 20. Nxe5 {[%clk 0:01:34.3]} 20... Bxe5 {[%clk
0:00:49.4]} 21. Rxd7 {[%clk 0:01:32.3]} 21... Bxa1 {[%clk 0:00:49.3]} 22. Qxa1
{[%clk 0:01:32.1]} 22... Rxa4 {[%clk 0:00:50]} 23. Qe1 {[%clk 0:01:22.9]} 23...
Qg6 {[%clk 0:00:37.9]} 24. Nd4 {[%clk 0:00:54.1]} 24... Rfa8 {[%clk 0:00:28.8]}
25. Rxc7 {[%clk 0:00:53.6]} 25... h5 {[%clk 0:00:25.5]} 26. Kh2 {[%clk
0:00:47.4]} 26... Qf6 {[%clk 0:00:24.9]} 27. Nf3 {[%clk 0:00:44.2]} 27... h4
{[%clk 0:00:19.4]} 28. Qc3 {[%clk 0:00:43.1]} 28... Qg6 {[%clk 0:00:17.6]} 29.
Ne5 {[%clk 0:00:40.1]} 29... Qh5 {[%clk 0:00:09.6]} 30. Nxf7 {[%clk 0:00:35]}
30... Rg4 {[%clk 0:00:05.7]} 31. Ne5 {[%clk 0:00:31.7]} 31... Rg5 {[%clk
0:00:03.4]} 32. Bxg5 {[%clk 0:00:30.1]} 32... Qxg5 {[%clk 0:00:03.4]} 33. Qe3
{[%clk 0:00:28.1]} 33... Qf5 {[%clk 0:00:03.3]} 34. Bh3 {[%clk 0:00:26.3]} 34...
Qf6 {[%clk 0:00:03.3]} 35. Rxb7 {[%clk 0:00:24.8]} 35... Rf8 {[%clk 0:00:02.7]}
36. Kg2 {[%clk 0:00:20.1]} 36... Kh7 {[%clk 0:00:03.2]} 37. Qe4+ {[%clk
0:00:19.4]} 37... Kg8 {[%clk 0:00:03.8]} 38. f3 {[%clk 0:00:18.9]} 38... Qg5+
{[%clk 0:00:03.8]} 39. Bg4 {[%clk 0:00:17]} 39... h3+ {[%clk 0:00:03.8]} 40.
Kxh3 {[%clk 0:00:16.8]} 40... Qh6+ {[%clk 0:00:04.7]} 41. Kg2 {[%clk 0:00:17]}
41... Qh4 {[%clk 0:00:04.1]} 42. Bxe6+ {[%clk 0:00:16.4]} 42... Kh8 {[%clk
0:00:03.6]} 43. Qg6 {[%clk 0:00:16.5]} 43... Qf4 {[%clk 0:00:02]} 44. Qh5+
{[%clk 0:00:15.8]} 44... Qh6 {[%clk 0:00:01.6]} 45. Ng6+ {[%clk 0:00:15.9]}
45... Kh7 {[%clk 0:00:01.7]} 46. Nxf8+ {[%clk 0:00:15.9]} 46... Kh8 {[%clk
0:00:02.6]} 47. Qxh6+ {[%clk 0:00:16.1]} 47... gxh6 {[%clk 0:00:03.5]} 48. Rh7#
{[%clk 0:00:15]} 1-0

[Event "*** Titled Tuesday Blitz"]
[Site "Chess.com"]
[Date "2020.05.26"]
[Round "7"]
[White "Playgood28"]
[Black "Ceejay271"]
[Result "0-1"]
[WhiteElo "2296"]
[BlackElo "2407"]
[TimeControl "180+1"]
[EndTime "11:21:37 PDT"]
[Termination "Ceejay271 won by resignation"]

1. d4 {[%clk 0:03:00.9]} 1... Nf6 {[%clk 0:02:58.7]} 2. c4 {[%clk 0:03:00.6]}
2... e6 {[%clk 0:02:57.9]} 3. Nc3 {[%clk 0:03:00.2]} 3... Bb4 {[%clk 0:02:57.8]}
4. Qc2 {[%clk 0:03:00.2]} 4... d5 {[%clk 0:02:56.6]} 5. e3 {[%clk 0:02:59.5]}
5... O-O {[%clk 0:02:55.2]} 6. a3 {[%clk 0:02:59.4]} 6... Bxc3+ {[%clk
0:02:53.2]} 7. Qxc3 {[%clk 0:03:00.3]} 7... Ne4 {[%clk 0:02:51.9]} 8. Qc2 {[%clk
0:02:59.6]} 8... c5 {[%clk 0:02:52]} 9. dxc5 {[%clk 0:02:57.4]} 9... a5 {[%clk
0:02:46.5]} 10. b3 {[%clk 0:02:52.9]} 10... Nc6 {[%clk 0:02:41]} 11. Nf3 {[%clk
0:02:50.6]} 11... f5 {[%clk 0:02:37.6]} 12. cxd5 {[%clk 0:02:48.1]} 12... Qxd5
{[%clk 0:02:30.5]} 13. Bb2 {[%clk 0:02:36.5]} 13... Qxc5 {[%clk 0:02:27.5]} 14.
Rc1 {[%clk 0:02:27.8]} 14... Qxc2 {[%clk 0:02:21.5]} 15. Rxc2 {[%clk 0:02:27.6]}
15... Bd7 {[%clk 0:02:21.6]} 16. Be2 {[%clk 0:02:21]} 16... Rac8 {[%clk
0:02:12.6]} 17. O-O {[%clk 0:02:14.9]} 17... Ne7 {[%clk 0:02:02.3]} 18. Rfc1
{[%clk 0:02:09.9]} 18... Rxc2 {[%clk 0:02:00.8]} 19. Rxc2 {[%clk 0:02:09.3]}
19... Rc8 {[%clk 0:02:01.2]} 20. Rxc8+ {[%clk 0:02:07.5]} 20... Bxc8 {[%clk
0:02:01]} 21. Ne5 {[%clk 0:01:54.9]} 21... Nd5 {[%clk 0:01:57.9]} 22. Nc4 {[%clk
0:01:38.2]} 22... b6 {[%clk 0:01:53.8]} 23. f3 {[%clk 0:01:36.7]} 23... Nc5
{[%clk 0:01:47.9]} 24. Bd1 {[%clk 0:01:15.1]} 24... Ba6 {[%clk 0:01:43.6]} 25.
Kf2 {[%clk 0:01:14.5]} 25... a4 {[%clk 0:01:42.4]} 26. Bd4 {[%clk 0:01:07.1]}
26... axb3 {[%clk 0:01:35.5]} 27. Bxc5 {[%clk 0:01:06.4]} 27... Bxc4 {[%clk
0:01:34.4]} 28. Bd4 {[%clk 0:01:03.5]} 28... b5 {[%clk 0:01:33.4]} 29. Ke1
{[%clk 0:01:00.5]} 29... g5 {[%clk 0:01:27.1]} 30. g3 {[%clk 0:00:55.3]} 30...
Kf7 {[%clk 0:01:25.2]} 31. Kd2 {[%clk 0:00:54.7]} 31... Ke7 {[%clk 0:01:21.3]}
32. e4 {[%clk 0:00:53.9]} 32... fxe4 {[%clk 0:01:19.4]} 33. fxe4 {[%clk
0:00:53.5]} 33... Nf6 {[%clk 0:01:18]} 34. Ke3 {[%clk 0:00:38.2]} 34... Nd7
{[%clk 0:01:16.8]} 35. e5 {[%clk 0:00:34.9]} 35... h6 {[%clk 0:01:15.7]} 36. Kd2
{[%clk 0:00:34.3]} 36... Kd8 {[%clk 0:01:10.9]} 37. Kc3 {[%clk 0:00:33.7]} 37...
Kc7 {[%clk 0:01:08.8]} 38. Bxb3 {[%clk 0:00:33.2]} 38... Bxb3 {[%clk 0:01:08]}
39. Kxb3 {[%clk 0:00:33.3]} 39... Kc6 {[%clk 0:01:08.8]} 40. Kb4 {[%clk
0:00:31.7]} 40... g4 {[%clk 0:01:04.4]} 41. a4 {[%clk 0:00:27.9]} 41... bxa4
{[%clk 0:01:03.2]} 42. Kxa4 {[%clk 0:00:28.1]} 42... Kd5 {[%clk 0:01:03.9]} 43.
Bc3 {[%clk 0:00:26.3]} 43... Nxe5 {[%clk 0:01:03.1]} 44. Kb3 {[%clk 0:00:25.9]}
44... Nf3 {[%clk 0:01:02.5]} 45. Kc2 {[%clk 0:00:24.2]} 45... Nxh2 {[%clk
0:01:01.9]} 46. Bd2 {[%clk 0:00:21]} 46... h5 {[%clk 0:01:00.5]} 47. Kd3 {[%clk
0:00:20.8]} 47... Nf3 {[%clk 0:00:59]} 48. Be3 {[%clk 0:00:19.2]} 48... e5
{[%clk 0:00:59.7]} 49. Bb6 {[%clk 0:00:17.6]} 49... h4 {[%clk 0:00:56.2]} 50.
gxh4 {[%clk 0:00:16.5]} 50... Nxh4 {[%clk 0:00:57.1]} 51. Ke3 {[%clk 0:00:15]}
51... Nf5+ {[%clk 0:00:58]} 52. Kf2 {[%clk 0:00:14]} 52... Ke4 {[%clk 0:00:57]}
53. Bc7 {[%clk 0:00:12.9]} 53... Kd5 {[%clk 0:00:51.5]} 54. Kg2 {[%clk
0:00:11.8]} 54... e4 {[%clk 0:00:51.8]} 55. Kf2 {[%clk 0:00:11.6]} 55... Kc4
{[%clk 0:00:51.5]} 56. Bf4 {[%clk 0:00:10.3]} 56... Kd3 {[%clk 0:00:51.1]} 57.
Kg2 {[%clk 0:00:09.4]} 57... Ke2 {[%clk 0:00:50.6]} 58. Bg5 {[%clk 0:00:08.1]}
58... e3 {[%clk 0:00:49.9]} 59. Bf4 {[%clk 0:00:07.8]} 59... Kd3 {[%clk
0:00:48.5]} 60. Kf1 {[%clk 0:00:06.4]} 60... e2+ {[%clk 0:00:48]} 61. Ke1 {[%clk
0:00:06.1]} 61... Nd4 {[%clk 0:00:47.8]} 62. Bg3 {[%clk 0:00:04.2]} 62... Nf3+
{[%clk 0:00:46.7]} 0-1

[Event "*** Titled Tuesday Blitz"]
[Site "Chess.com"]
[Date "2020.05.26"]
[Round "7"]
[White "MilosJi"]
[Black "GoltsevDmitry2000"]
[Result "1-0"]
[WhiteElo "2539"]
[BlackElo "2676"]
[TimeControl "180+1"]
[EndTime "11:21:38 PDT"]
[Termination "MilosJi won by checkmate"]

1. Nf3 {[%clk 0:02:38.9]} 1... d5 {[%clk 0:02:58.8]} 2. c4 {[%clk 0:02:37.4]}
2... c6 {[%clk 0:02:58.5]} 3. Qb3 {[%clk 0:02:36.3]} 3... Nf6 {[%clk 0:02:57]}
4. d4 {[%clk 0:02:35.1]} 4... Qb6 {[%clk 0:02:54.7]} 5. Nc3 {[%clk 0:02:31.9]}
5... Bg4 {[%clk 0:02:38.5]} 6. c5 {[%clk 0:02:19.6]} 6... Qxb3 {[%clk
0:02:35.2]} 7. axb3 {[%clk 0:02:19.6]} 7... Ne4 {[%clk 0:02:26.6]} 8. Ne5 {[%clk
0:02:17.1]} 8... Bf5 {[%clk 0:02:13.8]} 9. g4 {[%clk 0:02:16.3]} 9... Nxc3
{[%clk 0:01:58.8]} 10. bxc3 {[%clk 0:01:59.4]} 10... Be6 {[%clk 0:01:53.8]} 11.
h3 {[%clk 0:01:55.4]} 11... f6 {[%clk 0:01:53.4]} 12. Nd3 {[%clk 0:01:54.4]}
12... Nd7 {[%clk 0:01:53.7]} 13. Bg2 {[%clk 0:01:54.1]} 13... a6 {[%clk
0:01:49.7]} 14. Bf4 {[%clk 0:01:52]} 14... Bf7 {[%clk 0:01:48.5]} 15. Bg3 {[%clk
0:01:51.5]} 15... h5 {[%clk 0:01:43.9]} 16. Kd2 {[%clk 0:01:48.4]} 16... g5
{[%clk 0:01:39.7]} 17. b4 {[%clk 0:01:42.4]} 17... Rd8 {[%clk 0:01:35]} 18. e3
{[%clk 0:01:40.7]} 18... Bg6 {[%clk 0:01:25]} 19. Bf3 {[%clk 0:01:27.1]} 19...
Kf7 {[%clk 0:01:21.3]} 20. Be2 {[%clk 0:01:20.2]} 20... Bg7 {[%clk 0:01:08.4]}
21. Rhg1 {[%clk 0:01:10.5]} 21... e5 {[%clk 0:01:05.8]} 22. f4 {[%clk
0:01:01.7]} 22... hxg4 {[%clk 0:00:44]} 23. hxg4 {[%clk 0:01:00.3]} 23... gxf4
{[%clk 0:00:38.8]} 24. exf4 {[%clk 0:00:59.9]} 24... Bh6 {[%clk 0:00:21.6]} 25.
dxe5 {[%clk 0:00:44.4]} 25... fxe5 {[%clk 0:00:16.4]} 26. g5 {[%clk 0:00:44.2]}
26... Bg7 {[%clk 0:00:15.3]} 27. Nxe5+ {[%clk 0:00:44]} 27... Nxe5 {[%clk
0:00:14.6]} 28. fxe5 {[%clk 0:00:44.2]} 28... Rh3 {[%clk 0:00:11]} 29. Raf1+
{[%clk 0:00:42.7]} 29... Ke7 {[%clk 0:00:11.3]} 30. Bg4 {[%clk 0:00:41.5]} 30...
Rhh8 {[%clk 0:00:10.1]} 31. e6 {[%clk 0:00:38.4]} 31... Ke8 {[%clk 0:00:03.1]}
32. Bd6 {[%clk 0:00:36.8]} 32... Rh4 {[%clk 0:00:03.5]} 33. Rf6 {[%clk
0:00:30.5]} 33... Be4 {[%clk 0:00:01.8]} 34. Be2 {[%clk 0:00:25.9]} 34... Rh8
{[%clk 0:00:01]} 35. Rgf1 {[%clk 0:00:25.2]} 35... d4 {[%clk 0:00:01.4]} 36.
cxd4 {[%clk 0:00:24.6]} 36... Rg8 {[%clk 0:00:01.3]} 37. Kc3 {[%clk 0:00:23.3]}
37... Rh8 {[%clk 0:00:01.6]} 38. Rf7 {[%clk 0:00:23.3]} 38... Rg8 {[%clk
0:00:01.1]} 39. Re7# {[%clk 0:00:23.3]} 1-0

[Event "*** Titled Tuesday Blitz"]
[Site "Chess.com"]
[Date "2020.05.26"]
[Round "7"]
[White "Misha_Bilous"]
[Black "Witik"]
[Result "0-1"]
[WhiteElo "2461"]
[BlackElo "2655"]
[TimeControl "180+1"]
[EndTime "11:21:40 PDT"]
[Termination "Witik won on time"]

1. d4 {[%clk 0:03:00.9]} 1... f5 {[%clk 0:02:55.8]} 2. Nf3 {[%clk 0:03:00.5]}
2... Nf6 {[%clk 0:02:56.1]} 3. g3 {[%clk 0:03:01]} 3... e6 {[%clk 0:02:53.6]} 4.
Bg2 {[%clk 0:03:01.4]} 4... d5 {[%clk 0:02:53.9]} 5. O-O {[%clk 0:03:02]} 5...
Bd6 {[%clk 0:02:54.2]} 6. c4 {[%clk 0:03:02.7]} 6... c6 {[%clk 0:02:54.7]} 7.
Nc3 {[%clk 0:03:03.3]} 7... O-O {[%clk 0:02:54.8]} 8. Qc2 {[%clk 0:03:04]} 8...
Qe8 {[%clk 0:02:51.4]} 9. Rb1 {[%clk 0:02:59.2]} 9... b6 {[%clk 0:02:35.8]} 10.
b4 {[%clk 0:02:56.8]} 10... Bb7 {[%clk 0:02:33.2]} 11. b5 {[%clk 0:02:49]} 11...
c5 {[%clk 0:02:28.3]} 12. cxd5 {[%clk 0:02:46.2]} 12... exd5 {[%clk 0:02:28.1]}
13. Bg5 {[%clk 0:02:24]} 13... Ne4 {[%clk 0:02:22.2]} 14. Rfd1 {[%clk
0:02:10.9]} 14... c4 {[%clk 0:02:19.2]} 15. Bf4 {[%clk 0:01:41.9]} 15... Nd7
{[%clk 0:01:41.2]} 16. Nxe4 {[%clk 0:01:25.6]} 16... Bxf4 {[%clk 0:01:41]} 17.
Nc3 {[%clk 0:01:25.7]} 17... Bd6 {[%clk 0:01:36.9]} 18. Ne5 {[%clk 0:01:17.4]}
18... Nxe5 {[%clk 0:01:06.7]} 19. dxe5 {[%clk 0:01:18.3]} 19... Bxe5 {[%clk
0:01:03.6]} 20. Nxd5 {[%clk 0:01:18.5]} 20... Rc8 {[%clk 0:00:53.7]} 21. Nf6+
{[%clk 0:01:15.8]} 21... Bxf6 {[%clk 0:00:42.4]} 22. Bxb7 {[%clk 0:01:16.7]}
22... Rc5 {[%clk 0:00:40.7]} 23. Rd5 {[%clk 0:01:09.5]} 23... Qe7 {[%clk
0:00:29.7]} 24. Bc6 {[%clk 0:01:02.5]} 24... c3 {[%clk 0:00:28.3]} 25. Rbd1
{[%clk 0:00:55.7]} 25... Rxd5 {[%clk 0:00:20.7]} 26. Rxd5 {[%clk 0:00:56.3]}
26... g6 {[%clk 0:00:19.7]} 27. Rd7 {[%clk 0:00:54.5]} 27... Qe5 {[%clk
0:00:15.2]} 28. Rxa7 {[%clk 0:00:41]} 28... Bg7 {[%clk 0:00:11.4]} 29. Rd7
{[%clk 0:00:34]} 29... Kh8 {[%clk 0:00:10.3]} 30. a4 {[%clk 0:00:33.7]} 30...
Qc5 {[%clk 0:00:10]} 31. h4 {[%clk 0:00:26.9]} 31... f4 {[%clk 0:00:10.4]} 32.
Rd5 {[%clk 0:00:15.3]} 32... Qb4 {[%clk 0:00:07.7]} 33. Rd1 {[%clk 0:00:03.7]}
33... fxg3 {[%clk 0:00:07.9]} 34. fxg3 {[%clk 0:00:03.3]} 34... Qg4 {[%clk
0:00:03.2]} 35. Qd3 {[%clk 0:00:02.1]} 35... Be5 {[%clk 0:00:03.2]} 36. Kg2
{[%clk 0:00:01.8]} 36... Kg7 {[%clk 0:00:02.6]} 37. Rf1 {[%clk 0:00:02.4]} 37...
Rf6 {[%clk 0:00:02]} 38. Qd6 {[%clk 0:00:02]} 38... Rxd6 {[%clk 0:00:02.1]} 39.
Rf7+ {[%clk 0:00:02.6]} 39... Kxf7 {[%clk 0:00:02.3]} 40. Be8+ {[%clk
0:00:03.1]} 40... Kf6 {[%clk 0:00:03.2]} 41. e4 {[%clk 0:00:02.9]} 41... Qxe4+
{[%clk 0:00:03.4]} 0-1

[Event "*** Titled Tuesday Blitz"]
[Site "Chess.com"]
[Date "2020.05.26"]
[Round "7"]
[White "Semetey"]
[Black "Cocaino74"]
[Result "0-1"]
[WhiteElo "2519"]
[BlackElo "2373"]
[TimeControl "180+1"]
[EndTime "11:21:40 PDT"]
[Termination "Cocaino74 won by resignation"]

1. Nf3 {[%clk 0:03:00.9]} 1... d5 {[%clk 0:02:57.7]} 2. g3 {[%clk 0:03:00]} 2...
c5 {[%clk 0:02:57]} 3. Bg2 {[%clk 0:02:59.9]} 3... Nf6 {[%clk 0:02:54.9]} 4. d3
{[%clk 0:02:59.7]} 4... Nc6 {[%clk 0:02:54.5]} 5. Nbd2 {[%clk 0:02:59.6]} 5...
g6 {[%clk 0:02:53.8]} 6. O-O {[%clk 0:02:59.4]} 6... Bg7 {[%clk 0:02:54.3]} 7.
e4 {[%clk 0:02:59.6]} 7... O-O {[%clk 0:02:53.9]} 8. Re1 {[%clk 0:02:58.8]} 8...
e5 {[%clk 0:02:49.1]} 9. exd5 {[%clk 0:02:53.5]} 9... Nxd5 {[%clk 0:02:50]} 10.
Nc4 {[%clk 0:02:53.4]} 10... Re8 {[%clk 0:02:40.6]} 11. Bg5 {[%clk 0:02:44.9]}
11... f6 {[%clk 0:02:35.3]} 12. Bd2 {[%clk 0:02:44.8]} 12... Be6 {[%clk
0:02:32]} 13. a4 {[%clk 0:02:41.7]} 13... Qd7 {[%clk 0:02:26.9]} 14. a5 {[%clk
0:02:38.4]} 14... Rad8 {[%clk 0:02:15.3]} 15. c3 {[%clk 0:01:57.7]} 15... Nc7
{[%clk 0:02:04.5]} 16. Qb3 {[%clk 0:01:30.3]} 16... b5 {[%clk 0:01:16]} 17. axb6
{[%clk 0:01:28.8]} 17... axb6 {[%clk 0:01:16.9]} 18. Qxb6 {[%clk 0:01:16.1]}
18... Rb8 {[%clk 0:00:59.5]} 19. Qxc5 {[%clk 0:01:16]} 19... Bf8 {[%clk
0:00:36.1]} 20. Qe3 {[%clk 0:01:11.1]} 20... Nd5 {[%clk 0:00:34.5]} 21. Qe2
{[%clk 0:01:09.9]} 21... Bg4 {[%clk 0:00:26.1]} 22. Qf1 {[%clk 0:01:00.5]} 22...
g5 {[%clk 0:00:14.7]} 23. h3 {[%clk 0:00:54.5]} 23... Bf5 {[%clk 0:00:15.1]} 24.
b4 {[%clk 0:00:47.9]} 24... Ndxb4 {[%clk 0:00:06.3]} 25. cxb4 {[%clk 0:00:08.4]}
25... Bxd3 {[%clk 0:00:06.5]} 26. Qxd3 {[%clk 0:00:08.7]} 26... Qxd3 {[%clk
0:00:06.1]} 27. Na5 {[%clk 0:00:08.8]} 27... Nxb4 {[%clk 0:00:03.9]} 28. Re3
{[%clk 0:00:06.2]} 28... Qd7 {[%clk 0:00:03]} 29. Rb1 {[%clk 0:00:04.2]} 29...
e4 {[%clk 0:00:03.4]} 30. Ne1 {[%clk 0:00:01.8]} 30... Qxd2 {[%clk 0:00:02.9]}
31. Rxe4 {[%clk 0:00:02.5]} 31... Rxe4 {[%clk 0:00:02.6]} 32. Bxe4 {[%clk
0:00:03.4]} 32... Re8 {[%clk 0:00:03]} 33. Bf5 {[%clk 0:00:02.6]} 33... Rxe1+
{[%clk 0:00:02.7]} 34. Rxe1 {[%clk 0:00:02.9]} 34... Qxe1+ {[%clk 0:00:03.6]}
35. Kg2 {[%clk 0:00:03.8]} 35... Nd3 {[%clk 0:00:04.1]} 36. Bxd3 {[%clk
0:00:03.4]} 36... Qxa5 {[%clk 0:00:04.4]} 37. Bc4+ {[%clk 0:00:03.9]} 37... Kg7
{[%clk 0:00:04.3]} 38. g4 {[%clk 0:00:04.4]} 38... Qc5 {[%clk 0:00:04.9]} 39.
Bd3 {[%clk 0:00:04.6]} 39... Bd6 {[%clk 0:00:05.5]} 40. Be4 {[%clk 0:00:05]}
40... Qd4 {[%clk 0:00:06]} 41. Kf3 {[%clk 0:00:04.7]} 41... Bc5 {[%clk
0:00:06.6]} 0-1

[Event "*** Titled Tuesday Blitz"]
[Site "Chess.com"]
[Date "2020.05.26"]
[Round "7"]
[White "GmSergioBarrientos"]
[Black "wonderfultime"]
[Result "0-1"]
[WhiteElo "2615"]
[BlackElo "2952"]
[TimeControl "180+1"]
[EndTime "11:21:41 PDT"]
[Termination "wonderfultime won by resignation"]

1. d4 {[%clk 0:03:00.6]} 1... d5 {[%clk 0:03:00.1]} 2. c4 {[%clk 0:03:00.1]}
2... c6 {[%clk 0:03:00.6]} 3. Nf3 {[%clk 0:02:59.8]} 3... Nf6 {[%clk 0:03:01.2]}
4. Nc3 {[%clk 0:02:59.4]} 4... a6 {[%clk 0:03:01.7]} 5. Qc2 {[%clk 0:02:58.3]}
5... dxc4 {[%clk 0:03:00]} 6. e4 {[%clk 0:02:55.3]} 6... b5 {[%clk 0:03:00.5]}
7. b3 {[%clk 0:02:52.6]} 7... Bg4 {[%clk 0:02:57.9]} 8. Be3 {[%clk 0:02:47.1]}
8... Bxf3 {[%clk 0:02:18.1]} 9. gxf3 {[%clk 0:02:48]} 9... b4 {[%clk 0:02:19]}
10. Na4 {[%clk 0:02:30]} 10... c3 {[%clk 0:02:18.9]} 11. a3 {[%clk 0:02:11.6]}
11... a5 {[%clk 0:02:14.9]} 12. d5 {[%clk 0:02:00.9]} 12... e6 {[%clk
0:02:06.9]} 13. Nb6 {[%clk 0:01:47.1]} 13... Ra7 {[%clk 0:02:02]} 14. Nc4 {[%clk
0:01:45.2]} 14... Rb7 {[%clk 0:02:00.1]} 15. d6 {[%clk 0:01:34.9]} 15... Bxd6
{[%clk 0:01:28.8]} 16. e5 {[%clk 0:01:34.2]} 16... Be7 {[%clk 0:01:21.1]} 17.
exf6 {[%clk 0:01:33.5]} 17... Bxf6 {[%clk 0:01:18.6]} 18. axb4 {[%clk
0:01:33.2]} 18... axb4 {[%clk 0:01:18.2]} 19. Bc5 {[%clk 0:01:29.3]} 19... Be7
{[%clk 0:01:18.7]} 20. Be3 {[%clk 0:01:13]} 20... O-O {[%clk 0:01:12.8]} 21. Bd3
{[%clk 0:01:12.9]} 21... g6 {[%clk 0:01:08.5]} 22. Ne5 {[%clk 0:01:04]} 22...
Qd5 {[%clk 0:00:59.2]} 23. Bf4 {[%clk 0:00:56]} 23... Qd4 {[%clk 0:00:54.6]} 24.
Be4 {[%clk 0:00:47.6]} 24... Bf6 {[%clk 0:00:50.2]} 25. Ng4 {[%clk 0:00:45.1]}
25... Bg7 {[%clk 0:00:49.3]} 26. Rd1 {[%clk 0:00:43.3]} 26... Qb6 {[%clk
0:00:49.5]} 27. Be3 {[%clk 0:00:34.6]} 27... Qb5 {[%clk 0:00:42.5]} 28. Bd3
{[%clk 0:00:34.2]} 28... Qh5 {[%clk 0:00:40.7]} 29. Bc4 {[%clk 0:00:28.3]} 29...
Rd7 {[%clk 0:00:37.1]} 30. O-O {[%clk 0:00:22.2]} 30... Qh3 {[%clk 0:00:26]} 31.
Qe4 {[%clk 0:00:21]} 31... h5 {[%clk 0:00:19.3]} 32. Ne5 {[%clk 0:00:19.3]}
32... Rxd1 {[%clk 0:00:18.5]} 33. Rxd1 {[%clk 0:00:19.1]} 33... Bxe5 {[%clk
0:00:15.5]} 34. Qxe5 {[%clk 0:00:18.9]} 34... Qxf3 {[%clk 0:00:16.2]} 35. Bh6
{[%clk 0:00:18.8]} 35... Qxd1+ {[%clk 0:00:15.9]} 36. Bf1 {[%clk 0:00:18.5]}
36... Qg4+ {[%clk 0:00:09]} 37. Bg2 {[%clk 0:00:17.3]} 37... f6 {[%clk
0:00:09.5]} 38. Qc7 {[%clk 0:00:16]} 38... Rf7 {[%clk 0:00:09.8]} 39. Qxb8+
{[%clk 0:00:16]} 39... Kh7 {[%clk 0:00:10.3]} 40. Be3 {[%clk 0:00:16.3]} 40...
c2 {[%clk 0:00:09.3]} 41. Qe8 {[%clk 0:00:15.6]} 41... Rg7 {[%clk 0:00:07.8]}
42. h3 {[%clk 0:00:15.7]} 42... Qd1+ {[%clk 0:00:07.9]} 43. Kh2 {[%clk
0:00:15.9]} 43... c1=Q {[%clk 0:00:08.8]} 44. Bxc1 {[%clk 0:00:16.2]} 44... Qxc1
{[%clk 0:00:09.7]} 45. Qxe6 {[%clk 0:00:16.2]} 45... Qf4+ {[%clk 0:00:10.2]} 46.
Kh1 {[%clk 0:00:16]} 46... Qxf2 {[%clk 0:00:09.6]} 47. Bxc6 {[%clk 0:00:15.7]}
47... Qf1+ {[%clk 0:00:08.4]} 48. Kh2 {[%clk 0:00:15.7]} 48... Qf4+ {[%clk
0:00:09.3]} 49. Kh1 {[%clk 0:00:16.2]} 49... Ra7 {[%clk 0:00:09.8]} 50. Ba4
{[%clk 0:00:15.5]} 50... Rc7 {[%clk 0:00:09.9]} 51. Bc6 {[%clk 0:00:15.3]} 51...
Qc1+ {[%clk 0:00:10.2]} 0-1

[Event "*** Titled Tuesday Blitz"]
[Site "Chess.com"]
[Date "2020.05.26"]
[Round "7"]
[White "2008king"]
[Black "AlexZambrano"]
[Result "1-0"]
[WhiteElo "2128"]
[BlackElo "2269"]
[TimeControl "180+1"]
[EndTime "11:21:41 PDT"]
[Termination "2008king won on time"]

1. e4 {[%clk 0:03:00.9]} 1... d5 {[%clk 0:02:59.5]} 2. exd5 {[%clk 0:03:00.2]}
2... Qxd5 {[%clk 0:02:59.2]} 3. Nc3 {[%clk 0:02:59.2]} 3... Qd6 {[%clk
0:02:58.9]} 4. d4 {[%clk 0:02:59.4]} 4... c6 {[%clk 0:02:58.6]} 5. Nf3 {[%clk
0:02:59.9]} 5... Bg4 {[%clk 0:02:58.3]} 6. Be3 {[%clk 0:02:59.3]} 6... Nf6
{[%clk 0:02:57.8]} 7. Be2 {[%clk 0:02:58.4]} 7... e6 {[%clk 0:02:57.7]} 8. O-O
{[%clk 0:02:57.2]} 8... Nbd7 {[%clk 0:02:57.3]} 9. h3 {[%clk 0:02:57]} 9... Bxf3
{[%clk 0:02:57.5]} 10. Bxf3 {[%clk 0:02:57.7]} 10... Qc7 {[%clk 0:02:58]} 11.
Ne2 {[%clk 0:02:57.1]} 11... Bd6 {[%clk 0:02:58.1]} 12. c4 {[%clk 0:02:56.8]}
12... O-O {[%clk 0:02:54.1]} 13. Nc3 {[%clk 0:02:56.8]} 13... Bf4 {[%clk
0:02:53.3]} 14. Qc2 {[%clk 0:02:55]} 14... Rad8 {[%clk 0:02:51]} 15. Rac1 {[%clk
0:02:48.4]} 15... Bxe3 {[%clk 0:02:37.4]} 16. fxe3 {[%clk 0:02:49.3]} 16... Qg3
{[%clk 0:02:37.8]} 17. Qf2 {[%clk 0:02:46.5]} 17... Qg5 {[%clk 0:02:32.4]} 18.
e4 {[%clk 0:02:37.1]} 18... e5 {[%clk 0:02:24.8]} 19. d5 {[%clk 0:02:27]} 19...
cxd5 {[%clk 0:02:22.4]} 20. cxd5 {[%clk 0:02:27.9]} 20... b6 {[%clk 0:02:18.4]}
21. Nb5 {[%clk 0:02:00.1]} 21... Nc5 {[%clk 0:02:15.6]} 22. Qe2 {[%clk
0:01:53.9]} 22... a5 {[%clk 0:01:31.4]} 23. Rfd1 {[%clk 0:01:42]} 23... Qf4
{[%clk 0:01:14.6]} 24. Nc3 {[%clk 0:01:34.8]} 24... Rd6 {[%clk 0:01:06.7]} 25.
Rf1 {[%clk 0:01:32.4]} 25... Qh4 {[%clk 0:00:54.9]} 26. Nb5 {[%clk 0:01:22.8]}
26... Rd7 {[%clk 0:00:46.4]} 27. Nc3 {[%clk 0:01:20.9]} 27... Rfd8 {[%clk
0:00:45.5]} 28. Rce1 {[%clk 0:01:18.1]} 28... Qf4 {[%clk 0:00:23.3]} 29. Bg4
{[%clk 0:01:13.6]} 29... Qg5 {[%clk 0:00:19.4]} 30. Bxd7 {[%clk 0:01:13.1]}
30... Rxd7 {[%clk 0:00:19.8]} 31. Rf5 {[%clk 0:01:11.8]} 31... Qg6 {[%clk
0:00:19.3]} 32. Ref1 {[%clk 0:01:05.6]} 32... h6 {[%clk 0:00:19.7]} 33. a3
{[%clk 0:00:59.7]} 33... Rd6 {[%clk 0:00:16]} 34. b4 {[%clk 0:00:57]} 34... axb4
{[%clk 0:00:16.3]} 35. axb4 {[%clk 0:00:57.9]} 35... Ncd7 {[%clk 0:00:16.5]} 36.
Nb5 {[%clk 0:00:55.9]} 36... Ne8 {[%clk 0:00:16.7]} 37. Rxf7 {[%clk 0:00:49.6]}
37... Rf6 {[%clk 0:00:14.3]} 38. R7xf6 {[%clk 0:00:49.4]} 38... Nexf6 {[%clk
0:00:14.6]} 39. Nc3 {[%clk 0:00:42.4]} 39... Qg3 {[%clk 0:00:13.9]} 40. Nd1
{[%clk 0:00:27.2]} 40... Qb3 {[%clk 0:00:13.3]} 41. Qb5 {[%clk 0:00:24.6]} 41...
Qc2 {[%clk 0:00:07.8]} 42. Nf2 {[%clk 0:00:15.9]} 42... Kh7 {[%clk 0:00:07]} 43.
d6 {[%clk 0:00:15.2]} 43... Qd2 {[%clk 0:00:05.4]} 44. Rd1 {[%clk 0:00:14.6]}
44... Qe3 {[%clk 0:00:03.3]} 45. Qf1 {[%clk 0:00:12.5]} 1-0